[Event "*** SCC Grand Prix: Titled Tuesday Blitz"]
[Site "Chess.com"]
[Date "2020.07.14"]
[Round "4"]
[White "francyIM"]
[Black "GadimbayliA"]
[Result "0-1"]
[WhiteElo "2653"]
[BlackElo "2888"]
[TimeControl "180+1"]
[EndTime "10:39:52 PDT"]
[Termination "GadimbayliA won by resignation"]

1. d4 {[%clk 0:03:00.9]} 1... d5 {[%clk 0:03:00]} 2. c4 {[%clk 0:03:00.7]} 2...
e5 {[%clk 0:03:00.1]} 3. dxe5 {[%clk 0:03:00.4]} 3... d4 {[%clk 0:03:01]} 4. Nf3
{[%clk 0:03:01]} 4... Nc6 {[%clk 0:03:01.2]} 5. a3 {[%clk 0:03:01.4]} 5... Nge7
{[%clk 0:02:58.8]} 6. b4 {[%clk 0:03:00.1]} 6... Ng6 {[%clk 0:02:58.9]} 7. Bb2
{[%clk 0:02:58.4]} 7... a5 {[%clk 0:02:58.3]} 8. b5 {[%clk 0:02:57.5]} 8...
Ncxe5 {[%clk 0:02:58.2]} 9. Bxd4 {[%clk 0:02:54.2]} 9... Nxc4 {[%clk 0:02:55.8]}
10. e3 {[%clk 0:02:52.2]} 10... Nd6 {[%clk 0:02:53.9]} 11. Bd3 {[%clk
0:02:50.5]} 11... Nf5 {[%clk 0:02:53.2]} 12. Bxf5 {[%clk 0:02:49.5]} 12... Bxf5
{[%clk 0:02:54.1]} 13. O-O {[%clk 0:02:49.7]} 13... Qd7 {[%clk 0:02:43.7]} 14.
Qb3 {[%clk 0:02:48.7]} 14... a4 {[%clk 0:02:39.1]} 15. Qb2 {[%clk 0:02:48.7]}
15... f6 {[%clk 0:02:36.5]} 16. Rd1 {[%clk 0:02:43.6]} 16... Bd6 {[%clk
0:02:36.7]} 17. Nc3 {[%clk 0:02:43.1]} 17... Qe6 {[%clk 0:02:22.7]} 18. b6
{[%clk 0:02:22.6]} 18... c6 {[%clk 0:02:19.4]} 19. Ne2 {[%clk 0:02:14.1]} 19...
O-O {[%clk 0:02:03.2]} 20. Qa2 {[%clk 0:02:03.9]} 20... Qxa2 {[%clk 0:01:50.7]}
21. Rxa2 {[%clk 0:02:04.8]} 21... Rfd8 {[%clk 0:01:49.1]} 22. Rc1 {[%clk
0:02:00.1]} 22... Ra5 {[%clk 0:01:30.7]} 23. Nd2 {[%clk 0:01:59]} 23... Be6
{[%clk 0:01:29.2]} 24. Nc4 {[%clk 0:01:52.6]} 24... Bxc4 {[%clk 0:00:53.8]} 25.
Rxc4 {[%clk 0:01:50.9]} 25... Ne5 {[%clk 0:00:54.4]} 26. Bxe5 {[%clk 0:01:46.3]}
26... Bxe5 {[%clk 0:00:55.3]} 27. f4 {[%clk 0:01:46.7]} 27... Rd1+ {[%clk
0:00:53.2]} 28. Kf2 {[%clk 0:01:46.3]} 28... Bd6 {[%clk 0:00:53.8]} 29. Nc3
{[%clk 0:01:45.1]} 29... Rc1 {[%clk 0:00:41.2]} 30. Rxa4 {[%clk 0:01:41.2]}
30... Rxa4 {[%clk 0:00:40.5]} 31. Nxa4 {[%clk 0:01:42.1]} 31... Rc4 {[%clk
0:00:41]} 32. Rd2 {[%clk 0:01:31.8]} 32... Bxa3 {[%clk 0:00:35]} 33. Rd8+ {[%clk
0:01:31.1]} 33... Kf7 {[%clk 0:00:34.4]} 34. Rd7+ {[%clk 0:01:19.2]} 34... Be7
{[%clk 0:00:22.8]} 35. Rd4 {[%clk 0:01:11]} 35... Rxd4 {[%clk 0:00:22.7]} 36.
exd4 {[%clk 0:01:11.9]} 36... Ke6 {[%clk 0:00:23.3]} 37. Ke3 {[%clk 0:01:09.2]}
37... Kd5 {[%clk 0:00:23.3]} 38. Kd3 {[%clk 0:01:08]} 38... Bb4 {[%clk
0:00:23.8]} 39. f5 {[%clk 0:01:05.7]} 39... h6 {[%clk 0:00:16]} 40. g4 {[%clk
0:01:04.9]} 40... c5 {[%clk 0:00:15]} 41. dxc5 {[%clk 0:01:01.5]} 41... Bxc5
{[%clk 0:00:15.9]} 42. h4 {[%clk 0:01:00.2]} 42... Bd4 {[%clk 0:00:14.5]} 43. h5
{[%clk 0:00:57.4]} 43... Be5 {[%clk 0:00:10.1]} 44. Ke3 {[%clk 0:00:36.1]} 44...
Kc4 {[%clk 0:00:09.2]} 45. Ke4 {[%clk 0:00:36.5]} 45... Kb4 {[%clk 0:00:07.6]}
46. Kd5 {[%clk 0:00:36.4]} 46... Kxa4 {[%clk 0:00:08.1]} 47. Ke6 {[%clk
0:00:37.3]} 47... Kb5 {[%clk 0:00:08.3]} 48. Kf7 {[%clk 0:00:38.2]} 48... Bf4
{[%clk 0:00:08.7]} 49. Kxg7 {[%clk 0:00:37.1]} 49... Bg5 {[%clk 0:00:09.6]} 50.
Kg6 {[%clk 0:00:38]} 50... Kxb6 {[%clk 0:00:10.5]} 0-1

[Event "*** SCC Grand Prix: Titled Tuesday Blitz"]
[Site "Chess.com"]
[Date "2020.07.14"]
[Round "4"]
[White "StockholmMissile"]
[Black "Ze-Pequeno"]
[Result "1-0"]
[WhiteElo "2464"]
[BlackElo "2262"]
[TimeControl "180+1"]
[EndTime "10:39:54 PDT"]
[Termination "StockholmMissile won on time"]

1. d4 {[%clk 0:03:00.9]} 1... Nf6 {[%clk 0:02:59.1]} 2. c4 {[%clk 0:03:01.3]}
2... Nc6 {[%clk 0:02:59.3]} 3. Nf3 {[%clk 0:03:00.6]} 3... e6 {[%clk 0:02:59.1]}
4. a3 {[%clk 0:03:00.2]} 4... d6 {[%clk 0:02:59]} 5. g3 {[%clk 0:02:58.4]} 5...
g6 {[%clk 0:02:58.1]} 6. Bg2 {[%clk 0:02:58.2]} 6... Bg7 {[%clk 0:02:58.4]} 7.
O-O {[%clk 0:02:58.7]} 7... O-O {[%clk 0:02:58.7]} 8. Nc3 {[%clk 0:02:59.1]}
8... e5 {[%clk 0:02:56.3]} 9. e4 {[%clk 0:02:55.5]} 9... Re8 {[%clk 0:02:44.3]}
10. d5 {[%clk 0:02:49.5]} 10... Ne7 {[%clk 0:02:43.2]} 11. b4 {[%clk 0:02:48.3]}
11... h6 {[%clk 0:02:34.7]} 12. c5 {[%clk 0:02:42.3]} 12... Nh7 {[%clk
0:02:21.7]} 13. cxd6 {[%clk 0:02:39.9]} 13... cxd6 {[%clk 0:02:20.9]} 14. Nd2
{[%clk 0:02:39.6]} 14... f5 {[%clk 0:02:18.4]} 15. Nc4 {[%clk 0:02:38.1]} 15...
a6 {[%clk 0:01:18.2]} 16. f3 {[%clk 0:02:33.6]} 16... f4 {[%clk 0:01:02]} 17. g4
{[%clk 0:02:28.1]} 17... h5 {[%clk 0:01:01.4]} 18. h3 {[%clk 0:02:27.5]} 18...
Bf8 {[%clk 0:00:55.7]} 19. Bd2 {[%clk 0:02:24.9]} 19... Kg7 {[%clk 0:00:55]} 20.
Qe2 {[%clk 0:02:23.3]} 20... Ng8 {[%clk 0:00:48.7]} 21. Rfc1 {[%clk 0:02:21.8]}
21... Bd7 {[%clk 0:00:45.4]} 22. Be1 {[%clk 0:02:18.8]} 22... Be7 {[%clk
0:00:42.6]} 23. Bf2 {[%clk 0:02:17.9]} 23... hxg4 {[%clk 0:00:33]} 24. hxg4
{[%clk 0:02:14.3]} 24... Ng5 {[%clk 0:00:29.9]} 25. Bb6 {[%clk 0:02:10.7]} 25...
Qb8 {[%clk 0:00:29.2]} 26. Na5 {[%clk 0:02:04.8]} 26... Bd8 {[%clk 0:00:26.4]}
27. Bf2 {[%clk 0:02:03.2]} 27... Nf6 {[%clk 0:00:24.2]} 28. Nc4 {[%clk 0:01:46]}
28... Rh8 {[%clk 0:00:20.7]} 29. Nb6 {[%clk 0:01:43]} 29... Bxb6 {[%clk
0:00:19.2]} 30. Bxb6 {[%clk 0:01:43.9]} 30... Qg8 {[%clk 0:00:17.3]} 31. Kf1
{[%clk 0:01:25.5]} 31... Rh2 {[%clk 0:00:15.3]} 32. Bg1 {[%clk 0:01:23.2]} 32...
Qh7 {[%clk 0:00:15.1]} 33. a4 {[%clk 0:01:18.3]} 33... Rh8 {[%clk 0:00:13.9]}
34. Nd1 {[%clk 0:01:15.9]} 34... Qh4 {[%clk 0:00:12.9]} 35. Qf2 {[%clk
0:01:11.6]} 35... Qh6 {[%clk 0:00:11.9]} 36. Rc7 {[%clk 0:01:10]} 36... Kf8
{[%clk 0:00:07.7]} 37. Rxb7 {[%clk 0:01:04.8]} 37... Ke7 {[%clk 0:00:08]} 38. b5
{[%clk 0:01:04.5]} 38... Ngxe4 {[%clk 0:00:07]} 39. fxe4 {[%clk 0:01:03.4]}
39... Nxe4 {[%clk 0:00:07.4]} 40. Rxd7+ {[%clk 0:00:54.9]} 40... Kxd7 {[%clk
0:00:07.2]} 41. Qa7+ {[%clk 0:00:54.2]} 41... Ke8 {[%clk 0:00:07.6]} 42. Bxe4
{[%clk 0:00:41.8]} 42... Qh3+ {[%clk 0:00:06]} 43. Ke1 {[%clk 0:00:42.3]} 43...
Qg3+ {[%clk 0:00:04.2]} 44. Bf2 {[%clk 0:00:39.7]} 44... Rh1+ {[%clk 0:00:03.1]}
45. Kd2 {[%clk 0:00:39.8]} 45... Qb3 {[%clk 0:00:01.9]} 46. Rc1 {[%clk
0:00:34.4]} 1-0

[Event "*** SCC Grand Prix: Titled Tuesday Blitz"]
[Site "Chess.com"]
[Date "2020.07.14"]
[Round "4"]
[White "PlotnikovPavel"]
[Black "attack2mateU"]
[Result "1-0"]
[WhiteElo "2485"]
[BlackElo "2650"]
[TimeControl "180+1"]
[EndTime "10:39:55 PDT"]
[Termination "PlotnikovPavel won on time"]

1. e4 {[%clk 0:03:00.9]} 1... c5 {[%clk 0:02:58.7]} 2. c3 {[%clk 0:03:00.6]}
2... Nf6 {[%clk 0:02:57.9]} 3. e5 {[%clk 0:03:00.6]} 3... Nd5 {[%clk 0:02:58.5]}
4. d4 {[%clk 0:03:01.5]} 4... cxd4 {[%clk 0:02:57.8]} 5. Qxd4 {[%clk 0:03:02.4]}
5... e6 {[%clk 0:02:55.8]} 6. Bd3 {[%clk 0:03:02.8]} 6... Nc6 {[%clk 0:02:54.8]}
7. Qe4 {[%clk 0:03:03.4]} 7... d6 {[%clk 0:02:44.1]} 8. exd6 {[%clk 0:03:02.4]}
8... Bxd6 {[%clk 0:02:44.1]} 9. Nf3 {[%clk 0:03:02.4]} 9... h6 {[%clk
0:02:38.5]} 10. O-O {[%clk 0:03:00]} 10... Qf6 {[%clk 0:02:38]} 11. Re1 {[%clk
0:02:47.5]} 11... Nf4 {[%clk 0:02:35]} 12. Bxf4 {[%clk 0:02:26.4]} 12... Qxf4
{[%clk 0:02:32.7]} 13. Nbd2 {[%clk 0:02:23]} 13... Qxe4 {[%clk 0:02:29.8]} 14.
Nxe4 {[%clk 0:02:22.5]} 14... Be7 {[%clk 0:02:30.4]} 15. Rad1 {[%clk 0:02:14.2]}
15... Bd7 {[%clk 0:02:29.6]} 16. Bc2 {[%clk 0:01:56.6]} 16... O-O-O {[%clk
0:02:16.5]} 17. Nd6+ {[%clk 0:01:56]} 17... Bxd6 {[%clk 0:02:16.7]} 18. Rxd6
{[%clk 0:01:56.4]} 18... Kc7 {[%clk 0:02:15.9]} 19. Red1 {[%clk 0:01:55.4]}
19... Bc8 {[%clk 0:02:15.6]} 20. Rxd8 {[%clk 0:01:54]} 20... Rxd8 {[%clk
0:02:16.5]} 21. Rxd8 {[%clk 0:01:53.9]} 21... Kxd8 {[%clk 0:02:17.4]} 22. Kf1
{[%clk 0:01:51.2]} 22... Ke7 {[%clk 0:02:17.7]} 23. Ke2 {[%clk 0:01:50.6]} 23...
Kd6 {[%clk 0:02:16.8]} 24. Ke3 {[%clk 0:01:46.9]} 24... e5 {[%clk 0:02:16.6]}
25. Nd2 {[%clk 0:01:44.8]} 25... Be6 {[%clk 0:02:11.7]} 26. Ne4+ {[%clk
0:01:34.4]} 26... Kc7 {[%clk 0:02:10]} 27. a3 {[%clk 0:01:25.1]} 27... b6 {[%clk
0:02:09.7]} 28. g3 {[%clk 0:01:19.9]} 28... f5 {[%clk 0:02:04.4]} 29. Nd2 {[%clk
0:01:19.2]} 29... Kd6 {[%clk 0:02:05]} 30. Bd3 {[%clk 0:01:15.8]} 30... e4
{[%clk 0:01:50.7]} 31. Bb5 {[%clk 0:01:13.2]} 31... Ne5 {[%clk 0:01:50.3]} 32.
h3 {[%clk 0:01:10.7]} 32... g5 {[%clk 0:01:29.2]} 33. f4 {[%clk 0:01:08.2]}
33... gxf4+ {[%clk 0:01:01.8]} 34. Kxf4 {[%clk 0:01:06.2]} 34... Ng6+ {[%clk
0:01:01.2]} 35. Ke3 {[%clk 0:01:05.3]} 35... Ke5 {[%clk 0:01:00.8]} 36. Nc4+
{[%clk 0:01:04.7]} 36... Bxc4 {[%clk 0:01:00.5]} 37. Bxc4 {[%clk 0:01:04.7]}
37... f4+ {[%clk 0:00:57.2]} 38. gxf4+ {[%clk 0:00:59.6]} 38... Nxf4 {[%clk
0:00:58.1]} 39. Bf1 {[%clk 0:00:49.3]} 39... Nd5+ {[%clk 0:00:39.9]} 40. Kd2
{[%clk 0:00:48.8]} 40... Kf4 {[%clk 0:00:40]} 41. c4 {[%clk 0:00:48.7]} 41...
Nc7 {[%clk 0:00:27.6]} 42. b4 {[%clk 0:00:48]} 42... Ne6 {[%clk 0:00:28.2]} 43.
Be2 {[%clk 0:00:37.6]} 43... Nd4 {[%clk 0:00:17.2]} 44. Bd1 {[%clk 0:00:36.6]}
44... e3+ {[%clk 0:00:11.4]} 45. Kd3 {[%clk 0:00:36.5]} 45... Nf3 {[%clk
0:00:05.6]} 46. c5 {[%clk 0:00:34.3]} 46... Ne5+ {[%clk 0:00:05.8]} 47. Kd4
{[%clk 0:00:33]} 47... bxc5+ {[%clk 0:00:04.2]} 48. bxc5 {[%clk 0:00:32.5]}
48... Nf3+ {[%clk 0:00:02.7]} 49. Kd5 {[%clk 0:00:31.7]} 49... Ne5 {[%clk
0:00:01]} 50. c6 {[%clk 0:00:31.4]} 50... Nxc6 {[%clk 0:00:01.6]} 51. Kxc6
{[%clk 0:00:32.3]} 51... Kg3 {[%clk 0:00:02]} 52. Kd5 {[%clk 0:00:30]} 52...
Kxh3 {[%clk 0:00:02.3]} 53. Ke4 {[%clk 0:00:30]} 53... Kg3 {[%clk 0:00:02.4]}
54. Kxe3 {[%clk 0:00:29.9]} 54... a5 {[%clk 0:00:02.2]} 55. Kd4 {[%clk
0:00:28.9]} 1-0

[Event "*** SCC Grand Prix: Titled Tuesday Blitz"]
[Site "Chess.com"]
[Date "2020.07.14"]
[Round "4"]
[White "LiviuDieterNisipeanu"]
[Black "antoszu"]
[Result "0-1"]
[WhiteElo "2696"]
[BlackElo "2531"]
[TimeControl "180+1"]
[EndTime "10:39:56 PDT"]
[Termination "antoszu won by resignation"]

1. d4 {[%clk 0:03:00.9]} 1... Nf6 {[%clk 0:02:59.5]} 2. c4 {[%clk 0:03:00]} 2...
e6 {[%clk 0:02:59.5]} 3. Nc3 {[%clk 0:02:59.3]} 3... Bb4 {[%clk 0:02:58.4]} 4.
e3 {[%clk 0:02:59.5]} 4... O-O {[%clk 0:02:58.1]} 5. Bd3 {[%clk 0:03:00]} 5...
d5 {[%clk 0:02:57.1]} 6. Nf3 {[%clk 0:02:59.7]} 6... c5 {[%clk 0:02:57]} 7. O-O
{[%clk 0:02:59.1]} 7... Nc6 {[%clk 0:02:57]} 8. cxd5 {[%clk 0:02:57.2]} 8...
exd5 {[%clk 0:02:54.5]} 9. dxc5 {[%clk 0:02:57.3]} 9... Bxc5 {[%clk 0:02:55.4]}
10. h3 {[%clk 0:02:50.3]} 10... b6 {[%clk 0:02:46.1]} 11. Ne2 {[%clk 0:02:43.5]}
11... Bb7 {[%clk 0:02:44]} 12. b3 {[%clk 0:02:43.1]} 12... Ne4 {[%clk
0:02:40.2]} 13. Bb2 {[%clk 0:02:42.6]} 13... Qe7 {[%clk 0:02:31.3]} 14. Ned4
{[%clk 0:02:33]} 14... Nxd4 {[%clk 0:02:26.6]} 15. Nxd4 {[%clk 0:02:31.4]} 15...
g6 {[%clk 0:02:13.4]} 16. Rc1 {[%clk 0:02:10.8]} 16... Rfe8 {[%clk 0:02:05.4]}
17. Qg4 {[%clk 0:02:08.2]} 17... Bc8 {[%clk 0:01:40.3]} 18. Qe2 {[%clk
0:01:58.8]} 18... Bd7 {[%clk 0:01:36.5]} 19. Bb5 {[%clk 0:01:25.1]} 19... Rac8
{[%clk 0:01:18.2]} 20. Bxd7 {[%clk 0:01:23.5]} 20... Qxd7 {[%clk 0:01:19.1]} 21.
Qd3 {[%clk 0:01:10.8]} 21... Qe7 {[%clk 0:01:03.2]} 22. Rc2 {[%clk 0:01:09.6]}
22... Qg5 {[%clk 0:00:47.6]} 23. f4 {[%clk 0:00:53.6]} 23... Qe7 {[%clk
0:00:39.6]} 24. Rfc1 {[%clk 0:00:52.5]} 24... Qd7 {[%clk 0:00:29.3]} 25. Kh2
{[%clk 0:00:48.4]} 25... Rcd8 {[%clk 0:00:21.7]} 26. a3 {[%clk 0:00:47]} 26...
a5 {[%clk 0:00:21.6]} 27. Nf3 {[%clk 0:00:46.3]} 27... Qe6 {[%clk 0:00:16]} 28.
b4 {[%clk 0:00:44.1]} 28... axb4 {[%clk 0:00:14.1]} 29. axb4 {[%clk 0:00:45]}
29... Bf8 {[%clk 0:00:14.7]} 30. Rc6 {[%clk 0:00:36.9]} 30... Qe7 {[%clk
0:00:14.4]} 31. Ne5 {[%clk 0:00:33.3]} 31... f6 {[%clk 0:00:12.9]} 32. Ng4
{[%clk 0:00:33]} 32... Bg7 {[%clk 0:00:10.5]} 33. Rxb6 {[%clk 0:00:27.9]} 33...
h5 {[%clk 0:00:09]} 34. Nf2 {[%clk 0:00:21]} 34... Nxf2 {[%clk 0:00:08]} 35.
Qxg6 {[%clk 0:00:21.6]} 35... Ne4 {[%clk 0:00:08.2]} 36. Qxh5 {[%clk 0:00:18.2]}
36... Qf7 {[%clk 0:00:08.3]} 37. Qf5 {[%clk 0:00:17.9]} 37... Nd6 {[%clk
0:00:06.3]} 38. Qg4 {[%clk 0:00:18.1]} 38... Nc4 {[%clk 0:00:06.6]} 39. Rxc4
{[%clk 0:00:15.8]} 39... dxc4 {[%clk 0:00:07.5]} 40. Rxf6 {[%clk 0:00:16.5]}
40... Qc7 {[%clk 0:00:03.6]} 41. Rg6 {[%clk 0:00:14.8]} 41... c3 {[%clk
0:00:04.1]} 42. Bxc3 {[%clk 0:00:10]} 42... Qxc3 {[%clk 0:00:04]} 43. f5 {[%clk
0:00:10.9]} 43... Rf8 {[%clk 0:00:03.5]} 44. f6 {[%clk 0:00:10.3]} 44... Qe5+
{[%clk 0:00:04.1]} 0-1

[Event "*** SCC Grand Prix: Titled Tuesday Blitz"]
[Site "Chess.com"]
[Date "2020.07.14"]
[Round "4"]
[White "LubovMarkelova"]
[Black "PattyCastillo"]
[Result "1/2-1/2"]
[WhiteElo "2176"]
[BlackElo "1938"]
[TimeControl "180+1"]
[EndTime "10:39:56 PDT"]
[Termination "Game drawn by repetition"]

1. Nf3 {[%clk 0:03:00.9]} 1... d5 {[%clk 0:02:54.4]} 2. d4 {[%clk 0:03:00.5]}
2... Nf6 {[%clk 0:02:53.6]} 3. c4 {[%clk 0:03:00.9]} 3... c6 {[%clk 0:02:53.6]}
4. e3 {[%clk 0:03:01.3]} 4... e6 {[%clk 0:02:50.3]} 5. b3 {[%clk 0:03:01.3]}
5... Nbd7 {[%clk 0:02:50.1]} 6. Bb2 {[%clk 0:03:01.8]} 6... Bd6 {[%clk
0:02:50.1]} 7. Bd3 {[%clk 0:03:02.4]} 7... O-O {[%clk 0:02:48.9]} 8. O-O {[%clk
0:03:02.9]} 8... Qe7 {[%clk 0:02:49.2]} 9. Ne5 {[%clk 0:02:55.4]} 9... c5 {[%clk
0:02:32.5]} 10. Nd2 {[%clk 0:02:50.7]} 10... cxd4 {[%clk 0:02:27.6]} 11. exd4
{[%clk 0:02:50.4]} 11... Ba3 {[%clk 0:02:24.3]} 12. Bxa3 {[%clk 0:02:42.5]}
12... Qxa3 {[%clk 0:02:25.2]} 13. Ndf3 {[%clk 0:02:32.2]} 13... Qd6 {[%clk
0:02:05.7]} 14. Re1 {[%clk 0:02:21.2]} 14... b6 {[%clk 0:01:53.3]} 15. Nxd7
{[%clk 0:02:12.3]} 15... Bxd7 {[%clk 0:01:47.2]} 16. Ne5 {[%clk 0:02:12.1]}
16... Rac8 {[%clk 0:01:36.2]} 17. Rc1 {[%clk 0:02:06.6]} 17... Rfd8 {[%clk
0:01:35.2]} 18. Bb1 {[%clk 0:02:04.2]} 18... dxc4 {[%clk 0:01:18.8]} 19. bxc4
{[%clk 0:02:00.2]} 19... Bc6 {[%clk 0:01:08.3]} 20. Nxc6 {[%clk 0:01:55.8]}
20... Rxc6 {[%clk 0:01:05.7]} 21. Qf3 {[%clk 0:01:44.1]} 21... Rc7 {[%clk
0:00:56.4]} 22. h3 {[%clk 0:01:23]} 22... Qb4 {[%clk 0:00:32.7]} 23. a3 {[%clk
0:01:02.8]} 23... Qa5 {[%clk 0:00:17.4]} 24. d5 {[%clk 0:00:51.8]} 24... exd5
{[%clk 0:00:16.2]} 25. cxd5 {[%clk 0:00:51.9]} 25... Rxc1 {[%clk 0:00:15.3]} 26.
Rxc1 {[%clk 0:00:51.5]} 26... Qxd5 {[%clk 0:00:14.3]} 27. Qxd5 {[%clk 0:00:43]}
27... Nxd5 {[%clk 0:00:13.7]} 28. Be4 {[%clk 0:00:41]} 28... Nf6 {[%clk
0:00:11.6]} 29. Bf3 {[%clk 0:00:40.1]} 29... g6 {[%clk 0:00:11.8]} 30. Rc7
{[%clk 0:00:39.5]} 30... Rd7 {[%clk 0:00:11.7]} 31. Rc8+ {[%clk 0:00:34.4]}
31... Kg7 {[%clk 0:00:11.2]} 32. g4 {[%clk 0:00:33.4]} 32... h6 {[%clk
0:00:10.8]} 33. Kg2 {[%clk 0:00:32.7]} 33... g5 {[%clk 0:00:10.9]} 34. a4 {[%clk
0:00:29]} 34... Nd5 {[%clk 0:00:09.8]} 35. Bxd5 {[%clk 0:00:27.5]} 35... Rxd5
{[%clk 0:00:10.5]} 36. Rc7 {[%clk 0:00:28]} 36... Ra5 {[%clk 0:00:10.5]} 37. Rc4
{[%clk 0:00:25.6]} 37... a6 {[%clk 0:00:10.1]} 38. Rb4 {[%clk 0:00:24.4]} 38...
b5 {[%clk 0:00:09.4]} 39. axb5 {[%clk 0:00:24]} 39... Rxb5 {[%clk 0:00:09.8]}
40. Ra4 {[%clk 0:00:24]} 40... a5 {[%clk 0:00:10]} 41. Kg3 {[%clk 0:00:24]}
41... Kf6 {[%clk 0:00:10.6]} 42. f3 {[%clk 0:00:21]} 42... Ke6 {[%clk
0:00:10.6]} 43. h4 {[%clk 0:00:20.7]} 43... f6 {[%clk 0:00:10.3]} 44. hxg5
{[%clk 0:00:20.3]} 44... hxg5 {[%clk 0:00:10.3]} 45. Rc4 {[%clk 0:00:18.6]}
45... Re5 {[%clk 0:00:09]} 46. Rc6+ {[%clk 0:00:17.9]} 46... Kf7 {[%clk
0:00:09.2]} 47. Ra6 {[%clk 0:00:17.9]} 47... Rc5 {[%clk 0:00:08.7]} 48. Ra7+
{[%clk 0:00:18]} 48... Ke6 {[%clk 0:00:08.6]} 49. Ra6+ {[%clk 0:00:18.5]} 49...
Ke5 {[%clk 0:00:08.9]} 50. Kf2 {[%clk 0:00:18]} 50... Rb5 {[%clk 0:00:08]} 51.
Kg3 {[%clk 0:00:17.9]} 51... Rc5 {[%clk 0:00:08]} 52. Kf2 {[%clk 0:00:16.6]}
52... Rb5 {[%clk 0:00:08.3]} 53. Kg3 {[%clk 0:00:16.7]} 53... Rc5 {[%clk
0:00:08.2]} 1/2-1/2

[Event "*** SCC Grand Prix: Titled Tuesday Blitz"]
[Site "Chess.com"]
[Date "2020.07.14"]
[Round "4"]
[White "arminmusovic"]
[Black "CzechmVIII"]
[Result "1-0"]
[WhiteElo "2560"]
[BlackElo "2203"]
[TimeControl "180+1"]
[EndTime "10:39:57 PDT"]
[Termination "arminmusovic won on time"]

1. a3 {[%clk 0:03:00.9]} 1... g6 {[%clk 0:02:59.1]} 2. Nc3 {[%clk 0:03:01.8]}
2... Bg7 {[%clk 0:02:59.3]} 3. e4 {[%clk 0:03:02.5]} 3... c5 {[%clk 0:02:58.7]}
4. Nf3 {[%clk 0:03:02.6]} 4... Nc6 {[%clk 0:02:56.4]} 5. Bc4 {[%clk 0:03:03.1]}
5... Nf6 {[%clk 0:02:50]} 6. Ba2 {[%clk 0:03:01.2]} 6... O-O {[%clk 0:02:49.4]}
7. O-O {[%clk 0:03:01.6]} 7... d6 {[%clk 0:02:47.4]} 8. h3 {[%clk 0:03:02.1]}
8... b6 {[%clk 0:02:45.7]} 9. Re1 {[%clk 0:03:02.1]} 9... Bb7 {[%clk 0:02:41.7]}
10. d3 {[%clk 0:03:00.9]} 10... Rc8 {[%clk 0:02:39.5]} 11. Bf4 {[%clk 0:02:56]}
11... Nd7 {[%clk 0:02:33.3]} 12. Bg5 {[%clk 0:02:47.6]} 12... h6 {[%clk
0:02:29.5]} 13. Bh4 {[%clk 0:02:47.6]} 13... Nd4 {[%clk 0:02:15.9]} 14. Rb1
{[%clk 0:02:37.4]} 14... Nxf3+ {[%clk 0:02:07.4]} 15. Qxf3 {[%clk 0:02:37.1]}
15... Ne5 {[%clk 0:02:07.6]} 16. Qe2 {[%clk 0:02:36.5]} 16... Nc6 {[%clk
0:02:04.7]} 17. Nd5 {[%clk 0:02:16.2]} 17... g5 {[%clk 0:01:52.5]} 18. Bg3
{[%clk 0:02:15.1]} 18... Nd4 {[%clk 0:01:52.5]} 19. Qd1 {[%clk 0:02:15.6]} 19...
e5 {[%clk 0:01:44.9]} 20. c3 {[%clk 0:02:13.2]} 20... Ne6 {[%clk 0:01:44.9]} 21.
Ne3 {[%clk 0:02:09.1]} 21... Nf4 {[%clk 0:01:21.4]} 22. Nf5 {[%clk 0:02:09]}
22... Qf6 {[%clk 0:01:15.5]} 23. Bxf4 {[%clk 0:02:07.3]} 23... exf4 {[%clk
0:01:15.7]} 24. Qh5 {[%clk 0:02:07.6]} 24... Rcd8 {[%clk 0:01:02.5]} 25. h4
{[%clk 0:02:00.3]} 25... d5 {[%clk 0:00:59]} 26. Rbd1 {[%clk 0:01:35.5]} 26...
dxe4 {[%clk 0:00:54.3]} 27. dxe4 {[%clk 0:01:35.8]} 27... Rxd1 {[%clk
0:00:53.2]} 28. Rxd1 {[%clk 0:01:36.7]} 28... Bxe4 {[%clk 0:00:49.6]} 29. Nxg7
{[%clk 0:01:16.5]} 29... Kxg7 {[%clk 0:00:46.8]} 30. Rd7 {[%clk 0:01:10.3]}
30... Bg6 {[%clk 0:00:42.6]} 31. Qe2 {[%clk 0:01:02]} 31... f3 {[%clk
0:00:29.5]} 32. Qxf3 {[%clk 0:00:58]} 32... Qxf3 {[%clk 0:00:28.9]} 33. gxf3
{[%clk 0:00:58.9]} 33... gxh4 {[%clk 0:00:29.1]} 34. Bd5 {[%clk 0:00:51]} 34...
Kf6 {[%clk 0:00:23.9]} 35. Rxa7 {[%clk 0:00:48.8]} 35... Rd8 {[%clk 0:00:21.7]}
36. c4 {[%clk 0:00:48.3]} 36... b5 {[%clk 0:00:21.5]} 37. b4 {[%clk 0:00:41.3]}
37... bxc4 {[%clk 0:00:18.9]} 38. Bxc4 {[%clk 0:00:42.2]} 38... cxb4 {[%clk
0:00:19.2]} 39. axb4 {[%clk 0:00:43]} 39... Rb8 {[%clk 0:00:19.1]} 40. b5 {[%clk
0:00:42.8]} 40... Ke5 {[%clk 0:00:18.9]} 41. Bxf7 {[%clk 0:00:34]} 41... Bxf7
{[%clk 0:00:18.7]} 42. Rxf7 {[%clk 0:00:34.9]} 42... Rxb5 {[%clk 0:00:17.4]} 43.
Kg2 {[%clk 0:00:35.2]} 43... Rb3 {[%clk 0:00:12.9]} 44. Rh7 {[%clk 0:00:32.8]}
44... h3+ {[%clk 0:00:10.8]} 45. Kg3 {[%clk 0:00:30.5]} 45... Rb6 {[%clk
0:00:08.6]} 46. Kxh3 {[%clk 0:00:30.1]} 46... Rg6 {[%clk 0:00:08.5]} 47. Rf7
{[%clk 0:00:28.6]} 47... Ke6 {[%clk 0:00:06.6]} 48. Rf8 {[%clk 0:00:28.8]} 48...
Ke5 {[%clk 0:00:06.5]} 49. f4+ {[%clk 0:00:26.9]} 49... Ke4 {[%clk 0:00:06.5]}
50. f5 {[%clk 0:00:25.1]} 50... Rg1 {[%clk 0:00:02.4]} 51. Kh4 {[%clk
0:00:21.8]} 51... Rf1 {[%clk 0:00:01.6]} 52. Kh5 {[%clk 0:00:20.4]} 52... Rxf2
{[%clk 0:00:01.7]} 53. f6 {[%clk 0:00:20.9]} 53... Ke5 {[%clk 0:00:01.9]} 54.
Kg6 {[%clk 0:00:20.8]} 1-0